bitfinex/quotes_SOLUSD_20240711
["timestamp","ask_amount","ask_price","bid_price","bid_amount"]
[1720730140229,10.22133866,136.77,136.72,20.0]
[1720730141427,7.3121,136.76,136.72,20.0]
[1720730141628,27.3121,136.76,136.72,20.0]
[1720730141824,20.0,136.76,136.72,20.0]
[1720730142026,30.22093866,136.77,136.72,20.0]
[1720730142331,7.3132,136.74,136.7,16.3968]
[1720730142531,20.0,136.73,136.7,16.3968]
[1720730144832,27.3137,136.73,136.68,10.0]
[1720730145412,20.0,136.73,136.68,10.0]
[1720730145832,20.0,136.73,136.7,10.0]
[1720730146616,20.0,136.74,136.7,10.0]
[1720730146808,27.3131,136.74,136.7,10.0]
[1720730147222,27.3131,136.74,136.69,10.0]
[1720730148237,27.3131,136.74,136.7,10.0]
[1720730148737,20.0,136.74,136.7,10.0]
[1720730149312,27.3132,136.74,136.7,10.0]
[1720730150934,20.0,136.74,136.69,10.0]
[1720730151129,7.3139,136.73,136.69,10.0]
[1720730151435,20.0,136.72,136.69,20.0]
[1720730152522,20.0,136.73,136.71,10.0]
[1720730152715,20.0,136.74,136.71,10.0]
[1720730153039,7.3137,136.73,136.69,20.0]
[1720730153244,20.0,136.72,136.69,20.0]
[1720730154519,20.0,136.72,136.7,16.1078]
[1720730154729,20.0,136.74,136.71,20.0]
[1720730155937,20.0,136.74,136.68,10.0]
[1720730156140,28.84,136.74,136.68,10.0]
[1720730156438,20.0,136.73,136.69,17.3156]
[1720730156632,20.0,136.73,136.68,10.0]
[1720730156827,27.3137,136.73,136.68,10.0]
[1720730157031,20.0,136.73,136.67,16.2079]
[1720730157218,7.315,136.71,136.67,16.2079]
[1720730157419,20.0,136.7,136.67,16.2079]
[1720730158038,20.0,136.71,136.67,6.2079]
[1720730158338,20.0,136.71,136.67,16.2079]
[1720730158637,20.0,136.71,136.66,10.0]
[1720730158934,7.3154,136.7,136.65,20.0]
[1720730159137,20.0,136.69,136.65,20.0]
[1720730159343,20.0,136.71,136.65,20.0]
[1720730160218,27.3151,136.71,136.65,20.0]
[1720730161341,7.3153,136.7,136.65,20.0]
[1720730161639,2.93988047,136.78,136.72,10.0]
[1720730161818,28.84,136.79,136.72,10.0]
[1720730162017,28.84,136.79,136.75,10.0]
[1720730162244,28.84,136.82,136.75,20.0]
[1720730163325,7.31,136.8,136.75,20.0]
[1720730163930,20.0,136.79,136.75,20.0]
[1720730164445,20.0,136.81,136.75,20.0]
[1720730164738,20.0,136.81,136.75,10.0]
[1720730164945,28.84,136.79,136.73,20.0]
[1720730165142,28.84,136.79,136.73,10.0]
[1720730165344,20.0,136.78,136.71,10.0]
[1720730165526,28.84,136.76,136.71,10.0]
[1720730165721,20.0,136.75,136.71,10.0]
[1720730166717,20.0,136.75,136.74,17.3131]
[1720730166922,20.0,136.75,136.74,10.0]
[1720730167750,7.3099,136.8,136.75,10.0]
[1720730168646,7.31,136.8,136.75,10.0]
[1720730168846,31.78181658,136.81,136.76,10.0]
[1720730169049,20.0,136.8,136.76,10.0]
[1720730169345,20.0,136.81,136.76,10.0]
[1720730169835,27.3094,136.81,136.76,10.0]
[1720730171148,27.3094,136.81,136.77,10.0]
[1720730171149,20.0,136.81,136.77,10.0]
[1720730172321,20.0,136.81,136.78,10.0]
[1720730173228,22.9425698,136.82,136.78,10.0]
[1720730173432,27.3089,136.82,136.78,10.0]
[1720730173630,7.3094,136.81,136.78,10.0]
[1720730173858,20.0,136.8,136.78,10.0]
[1720730174733,20.0,136.81,136.78,10.0]
[1720730178950,2.94738786,136.83,136.78,10.0]
[1720730178951,10.25588786,136.83,136.78,10.0]
[1720730179162,10.25588786,136.83,136.79,10.0]
[1720730180035,7.3089,136.82,136.78,10.0]
[1720730180238,7.3095,136.81,136.78,10.0]
[1720730180446,20.0,136.8,136.78,10.0]
[1720730181944,20.0,136.8,136.77,16.3629]
[1720730182150,27.3099,136.8,136.77,16.3629]
[1720730183059,20.0,136.8,136.77,16.3629]
[1720730183442,20.0,136.81,136.78,10.0]
[1720730183949,7.3084,136.83,136.78,10.0]
[1720730183950,20.0,136.82,136.78,10.0]
[1720730184359,10.2769817,136.84,136.79,10.0]
[1720730185542,20.0,136.83,136.79,10.0]
[1720730186236,27.3084,136.83,136.79,10.0]
[1720730186432,6.71343594,136.87,136.82,10.0]
[1720730186670,6.4507,136.92,136.84,28.2692]
[1720730186956,6.4507,136.92,136.84,27.3074]
[1720730186957,36.1441,136.91,136.84,27.3074]
[1720730187167,36.1441,136.91,136.86,10.0]
[1720730187344,7.3041,136.91,136.86,10.0]
[1720730187544,39.16765242,136.92,136.86,10.0]
[1720730187958,31.86415242,136.92,136.86,27.3066]
[1720730188158,31.86415242,136.92,136.88,10.0]
[1720730189175,20.0,136.91,136.88,10.0]
[1720730189376,20.0,136.91,136.88,20.0]
[1720730190473,20.0,136.91,136.9,10.0]
[1720730190835,7.3026,136.94,136.9,10.0]
[1720730191240,7.303,136.93,136.9,10.0]
[1720730192165,20.0,136.92,136.9,10.0]
[1720730192993,20.0,136.93,136.9,20.0]
[1720730193170,10.28626736,136.95,136.9,20.0]
[1720730193371,20.0,136.94,136.9,20.0]
[1720730193544,7.3022,136.95,136.9,20.0]
[1720730193750,7.302,136.95,136.92,10.0]
[1720730193963,31.84700006,136.99,136.92,10.0]
[1720730194150,28.84,136.96,136.92,10.0]
[1720730194473,7.3021,136.95,136.92,10.0]
[1720730194972,27.25861,136.94,136.92,10.0]
[1720730195263,7.3032,136.93,136.88,20.0]
[1720730196442,27.25861,136.94,136.9,10.0]
[1720730196856,27.25861,136.94,136.9,20.0]
[1720730197053,19.95611,136.94,136.9,20.0]
[1720730197673,7.303,136.93,136.88,20.0]
[1720730197992,27.3036,136.92,136.88,20.0]
[1720730198346,20.0,136.92,136.88,20.0]
[1720730199173,20.0,136.93,136.88,20.0]
[1720730199346,20.0,136.93,136.9,10.0]
[1720730199777,7.3021,136.95,136.9,20.0]
[1720730200946,20.0,136.94,136.9,20.0]
[1720730203172,20.0,136.94,136.88,20.0]
[1720730203471,20.0,136.95,136.88,20.0]
[1720730203779,7.3036,136.92,136.88,20.0]
[1720730203954,20.0,136.91,136.88,20.0]
[1720730204151,18.5,136.91,136.88,20.0]
[1720730205756,7.303,136.93,136.88,20.0]
[1720730206059,7.3026,136.94,136.88,20.0]
[1720730206263,7.3026,136.94,136.9,10.0]
[1720730206494,20.0,136.93,136.9,10.0]
[1720730207456,27.303,136.93,136.9,10.0]
[1720730207658,20.0,136.93,136.88,20.0]
[1720730207857,20.0,136.95,136.88,20.0]
[1720730208073,7.3032,136.93,136.88,20.0]
[1720730208385,20.0,136.92,136.88,20.0]
[1720730209176,20.0,136.92,136.9,10.0]
[1720730209381,20.0,136.93,136.9,10.0]
[1720730209761,20.0,136.95,136.9,10.0]
[1720730210085,7.3019,136.95,136.92,10.0]
[1720730210383,10.31002807,136.96,136.91,6.4819]
[1720730210566,14.38,136.92,136.91,6.4819]
[1720730210883,14.38,136.92,136.9,20.0]
[1720730211184,14.38,136.91,136.9,20.0]
[1720730211486,34.38,136.91,136.9,20.0]
[1720730211886,34.38,136.91,136.86,20.0]
[1720730212060,14.38,136.88,136.86,20.0]
[1720730212265,14.38,136.88,136.82,25.5804]
[1720730212266,14.38,136.87,136.83,20.0]
[1720730212584,14.38,136.84,136.83,10.0]
[1720730212890,14.38,136.84,136.83,20.0]
[1720730213191,14.38,136.85,136.83,20.0]
[1720730213383,14.38,136.86,136.85,20.0]
[1720730213684,20.0,136.86,136.85,20.0]
[1720730213980,34.38,136.86,136.85,20.0]
[1720730214401,20.0,136.86,136.85,20.0]
[1720730215384,20.0,136.86,136.85,27.3072]
[1720730215558,20.0,136.86,136.85,72.4772]
[1720730215763,20.0,136.86,136.85,72.6472]
[1720730216478,46.76522274,136.97,136.89,20.0]
[1720730216686,48.76,136.94,136.89,20.0]
[1720730216864,56.0626,136.94,136.89,20.0]
[1720730217376,8.147481,137.01,136.97,10.0]
[1720730217683,0.848281,137.01,136.97,20.0]
[1720730217891,0.848281,137.01,136.99,10.0]
[1720730218860,0.848281,137.01,136.97,20.0]
[1720730219262,0.848281,137.01,136.99,10.0]
[1720730219457,0.848281,137.01,136.99,20.0]
[1720730220584,0.848281,137.01,136.97,10.0]
[1720730220798,8.146981,137.01,136.97,10.0]
[1720730220986,7.2998,136.99,136.94,26.2991]
[1720730221291,7.2998,136.99,136.93,28.2565]
[1720730221292,7.3013,136.97,136.93,10.0]
[1720730221486,28.76,137.0,136.93,10.0]
[1720730221699,20.0,136.99,136.93,10.0]
[1720730221992,20.0,136.99,136.92,10.0]
[1720730221993,7.3015,136.96,136.92,10.0]
[1720730222170,20.0,136.95,136.93,10.0]
[1720730222904,28.76,136.97,136.92,10.0]
[1720730223193,27.3014,136.96,136.92,10.0]
[1720730223566,7.3026,136.94,136.89,20.0]
[1720730223766,20.0,136.93,136.89,20.0]
[1720730224997,20.0,136.93,136.91,10.0]
[1720730225162,20.0,136.93,136.89,20.0]
[1720730226291,28.76,136.92,136.86,10.0]
[1720730226469,20.0,136.91,136.86,20.0]
[1720730226890,7.3046,136.9,136.86,20.0]
[1720730227093,20.0,136.89,136.86,20.0]
[1720730227473,20.0,136.91,136.86,20.0]
[1720730227669,20.0,136.91,136.84,10.0]
[1720730227876,20.0,136.91,136.82,16.0673]
[1720730227877,28.76,136.89,136.82,26.0673]
[1720730228199,20.0,136.88,136.86,20.0]
[1720730228568,20.0,136.88,136.86,10.0]
[1720730229279,20.0,136.88,136.86,20.0]
[1720730229598,20.0,136.88,136.86,10.0]
[1720730230988,20.0,136.88,136.86,20.0]
[1720730231293,20.0,136.91,136.86,20.0]
[1720730231593,20.0,136.91,136.86,27.3067]
[1720730231801,20.0,136.91,136.88,20.0]
[1720730232676,2.95483444,136.92,136.88,20.0]
[1720730233014,7.303,136.93,136.88,20.0]
[1720730233295,36.0626,136.94,136.9,10.0]
[1720730234196,7.303,136.93,136.9,10.0]
[1720730234403,36.0626,136.94,136.88,20.0]
[1720730234776,20.0,136.93,136.88,20.0]
[1720730235397,27.303,136.93,136.88,10.0]
[1720730235598,7.3035,136.92,136.88,10.0]
[1720730235900,7.3035,136.92,136.86,10.0]
[1720730235901,7.3047,136.9,136.86,20.0]
[1720730236084,20.0,136.89,136.86,20.0]
[1720730236908,20.0,136.9,136.86,20.0]
[1720730237903,20.0,136.9,136.88,20.0]
[1720730239084,20.0,136.91,136.88,20.0]
[1720730239281,27.3035,136.92,136.88,20.0]
[1720730239480,20.0,136.92,136.88,20.0]
[1720730239895,20.0,136.93,136.88,20.0]
[1720730240378,7.3037,136.92,136.88,20.0]
[1720730240582,20.0,136.91,136.88,20.0]
[1720730241406,27.3042,136.91,136.88,10.0]
[1720730241585,7.3051,136.89,136.88,10.0]
[1720730241784,27.3051,136.89,136.88,10.0]
[1720730242387,27.3051,136.89,136.86,10.0]
[1720730242595,20.0,136.88,136.86,10.0]
[1720730243278,20.0,136.89,136.86,10.0]
[1720730243894,20.0,136.9,136.86,10.0]
[1720730244097,27.3046,136.9,136.86,10.0]
[1720730249286,20.0,136.9,136.86,10.0]
[1720730250589,27.3047,136.9,136.86,10.0]
[1720730253593,20.0,136.9,136.86,10.0]
[1720730253809,20.0,136.9,136.88,10.0]
[1720730254821,27.3046,136.9,136.88,10.0]
[1720730254988,7.3051,136.89,136.85,10.0]
[1720730255315,20.0,136.9,136.83,10.0]
[1720730255316,20.0,136.88,136.83,10.0]
[1720730255624,7.3058,136.88,136.83,10.0]
[1720730255795,20.0,136.87,136.83,10.0]
[1720730256196,20.0,136.87,136.83,17.3083]
[1720730256416,20.0,136.88,136.83,17.3083]
[1720730256603,20.0,136.88,136.85,10.0]
[1720730256804,48.76,136.9,136.87,10.0]
[1720730257114,20.0,136.9,136.87,10.0]
[1720730257722,27.3046,136.9,136.87,10.0]
[1720730258617,14.39,136.88,136.87,10.0]
[1720730258825,34.39,136.88,136.87,10.0]
[1720730262018,20.0,136.88,136.87,10.0]
[1720730262234,34.39,136.88,136.87,10.0]
[1720730262517,0.848281,137.01,136.91,10.0]
[1720730262518,6.0667,136.96,136.91,10.0]
[1720730262727,14.39,136.92,136.91,10.0]
[1720730263031,7.3021,136.95,136.91,10.0]
[1720730263197,14.39,136.93,136.91,20.0]
[1720730264625,20.0,136.92,136.91,20.0]
[1720730264829,20.0,136.92,136.91,65.0]
[1720730266308,34.39,136.92,136.91,65.0]
[1720730267427,34.39,136.92,136.89,10.0]
[1720730267608,14.39,136.9,136.89,10.0]
[1720730267803,20.0,136.9,136.89,55.0]
[1720730268002,34.39,136.9,136.89,55.0]
[1720730269317,34.39,136.9,136.89,10.0]
[1720730270409,34.39,136.9,136.87,10.0]
[1720730270729,20.0,136.89,136.87,10.0]
[1720730271113,20.0,136.89,136.85,54.66]
[1720730271430,7.3041,136.91,136.87,10.0]
[1720730271431,20.0,136.9,136.87,10.0]
[1720730271628,20.0,136.9,136.89,10.0]
[1720730275618,20.0,136.9,136.89,17.3051]
[1720730275816,20.0,136.9,136.89,10.0]
[1720730276334,20.0,136.9,136.89,17.3051]
[1720730276509,20.0,136.9,136.89,7.0318]
[1720730276708,20.0,136.9,136.89,17.0318]
[1720730278303,28.77,136.95,136.92,10.0]
[1720730278527,2.98746068,136.96,136.92,10.0]
[1720730278733,28.77,136.98,136.92,10.0]
[1720730279313,7.3009,136.97,136.92,10.0]
[1720730279842,20.0,136.96,136.92,10.0]
[1720730280139,7.3022,136.95,136.9,10.0]
[1720730280326,27.3025,136.94,136.88,20.0]
[1720730280524,7.3036,136.92,136.88,10.0]
[1720730280726,20.0,136.91,136.88,10.0]
[1720730280925,20.0,136.91,136.86,10.0]
[1720730281732,7.3046,136.9,136.84,45.5756]
[1720730281910,20.0,136.89,136.84,20.0]
[1720730282123,7.3047,136.9,136.84,20.0]
[1720730282315,20.0,136.89,136.84,20.0]
[1720730282822,20.0,136.89,136.88,10.0]
[1720730283523,20.0,136.89,136.84,10.0]
[1720730283724,28.77,136.89,136.84,10.0]
[1720730283914,7.64558316,136.94,136.9,10.0]
[1720730284114,7.3023,136.95,136.9,10.0]
[1720730284542,24.6821,137.02,136.94,10.0]
[1720730284745,7.3002,136.99,136.94,10.0]
[1720730284954,3.27064685,136.98,136.94,10.0]
[1720730285242,7.3002,136.99,136.94,10.0]
[1720730286419,11.06215205,137.01,136.96,20.0]
[1720730286641,3.27279487,137.0,136.96,20.0]
[1720730286849,8.146981,137.01,136.96,20.0]
[1720730288138,20.0,137.0,136.96,20.0]
[1720730288339,20.0,137.0,136.98,10.0]
[1720730289816,7.3008,136.98,136.94,10.0]
[1720730290021,20.0,136.97,136.94,10.0]
[1720730290233,27.3009,136.97,136.92,35.3932]
[1720730290654,27.3009,136.97,136.94,10.0]
[1720730291126,20.0,136.97,136.94,10.0]
[1720730291322,20.0,136.99,136.94,20.0]
[1720730291750,20.0,136.99,136.96,10.0]
[1720730292324,20.0,136.99,136.94,20.0]
[1720730292628,7.2998,136.99,136.96,10.0]
[1720730294147,20.0,136.98,136.96,10.0]
[1720730295139,20.0,136.98,136.96,20.0]
[1720730297540,20.0,136.99,136.98,10.0]
[1720730298555,27.2998,136.99,136.98,10.0]
[1720730298943,0.848281,137.01,136.98,20.0]
[1720730299259,0.848281,137.01,137.0,10.0]
[1720730299464,0.848281,137.01,137.0,20.0]
[1720730301461,0.848281,137.01,137.0,10.0]
[1720730303267,36.4524,137.17,137.06,10.0]
[1720730303268,0.04339175,137.1,137.06,10.0]
[1720730303442,0.04339175,137.1,137.06,20.0]
[1720730303638,0.04339175,137.1,137.0,67.7148]
[1720730303639,0.04339175,137.1,137.08,10.0]
[1720730303842,0.04339175,137.1,137.06,20.0]
[1720730304157,0.04339175,137.1,137.09,10.0]
[1720730305956,7.2948,137.09,137.03,44.0992]
[1720730306264,28.77,137.07,137.01,10.0]
[1720730306747,7.2967,137.05,137.01,10.0]
[1720730306946,20.0,137.04,137.01,10.0]
[1720730308048,20.0,137.04,137.0,15.8559]
[1720730308049,20.0,137.05,137.04,10.0]
[1720730308366,20.0,137.05,137.04,17.2971]
[1720730308767,20.0,137.05,137.04,10.0]
[1720730308944,20.0,137.05,137.02,10.0]
[1720730309258,7.2961,137.06,137.02,10.0]
[1720730309450,20.0,137.05,137.02,10.0]
[1720730310362,20.0,137.05,137.0,43.155]
[1720730310544,20.0,137.05,137.0,35.8559]
[1720730310864,20.0,137.05,137.0,20.0]
[1720730311065,20.0,137.07,137.0,10.0]
[1720730311240,45.34,137.06,137.0,10.0]
[1720730311434,48.77,137.05,137.0,10.0]
[1720730312370,7.2984,137.02,136.96,25.6695]
[1720730312668,27.2987,137.01,136.96,25.6695]
[1720730312869,7.2987,137.01,136.96,25.6695]
[1720730313163,20.0,137.0,136.96,10.0]
[1720730314539,27.2992,137.0,136.96,10.0]
[1720730314743,20.0,137.0,136.98,10.0]
[1720730314952,7.298,137.03,136.98,10.0]
[1720730315140,20.0,137.02,136.98,10.0]
[1720730316341,45.17,137.06,136.93,21.8008]
[1720730316342,21.3889,137.09,137.01,10.0]
[1720730316536,7.2959,137.07,137.01,20.0]
[1720730316767,7.2951,137.08,137.03,10.0]
[1720730317143,7.2956,137.07,137.03,10.0]
[1720730318159,7.33739175,137.1,137.05,10.0]
[1720730318348,7.2947,137.09,137.05,10.0]
[1720730318848,7.295,137.08,137.05,10.0]
[1720730319367,7.2946,137.09,137.05,10.0]
[1720730319665,20.0,137.08,137.05,10.0]
[1720730320447,27.295,137.08,137.05,10.0]
[1720730320774,7.2955,137.07,137.03,20.0]
[1720730320949,20.0,137.06,137.03,20.0]
[1720730321953,20.0,137.08,137.03,20.0]
[1720730322659,20.0,137.08,137.05,10.0]
[1720730324044,27.2951,137.08,137.05,10.0]
[1720730324966,20.0,137.08,137.01,10.0]
[1720730325157,28.77,137.07,136.99,20.0]
[1720730325468,20.0,137.06,137.01,10.0]
[1720730325641,7.2966,137.05,137.01,10.0]
[1720730325848,20.0,137.04,137.01,10.0]
[1720730326270,20.0,137.04,137.03,10.0]
[1720730327868,20.0,137.04,137.03,20.0]
[1720730328952,2.93847879,137.1,137.06,10.0]
[1720730329268,0.04339175,137.1,137.06,10.0]
[1720730330052,0.04339175,137.1,137.05,10.0]
[1720730330053,0.04339175,137.1,137.08,10.0]
[1720730334565,20.04339175,137.1,137.08,10.0]
[1720730336584,20.0,137.09,137.08,10.0]
[1720730337053,20.0,137.09,137.06,10.0]
[1720730337253,0.04339175,137.1,137.06,10.0]
[1720730337254,7.33769175,137.1,137.06,10.0]
[1720730337452,20.0,137.09,137.06,10.0]
[1720730338459,20.0,137.09,137.08,10.0]
[1720730340259,27.2946,137.09,137.06,10.0]
[1720730340468,7.2956,137.07,137.04,10.0]
[1720730340683,20.0,137.06,137.02,10.0]
[1720730340965,27.2961,137.06,137.02,10.0]
[1720730341494,7.2966,137.05,137.02,10.0]
[1720730341694,20.0,137.06,137.05,10.0]
[1720730343576,20.0,137.06,137.03,10.0]
[1720730343784,20.0,137.07,137.05,10.0]
[1720730344094,20.0,137.09,137.05,10.0]
[1720730344390,20.0,137.09,137.03,10.0]
[1720730344899,7.296,137.07,137.03,10.0]
[1720730345096,20.0,137.06,137.05,10.0]
[1720730347100,20.0,137.06,137.03,10.0]
[1720730347569,20.0,137.06,137.05,10.0]
[1720730349695,20.0,137.06,137.03,10.0]
[1720730349867,20.0,137.07,137.03,10.0]
[1720730350491,20.0,137.07,137.05,10.0]
[1720730350694,20.0,137.08,137.05,10.0]
[1720730351376,0.04339175,137.1,137.05,10.0]
[1720730351582,7.33729175,137.1,137.05,20.0]
[1720730351782,0.04339175,137.1,137.07,10.0]
[1720730352695,7.33739175,137.1,137.07,10.0]
[1720730352878,0.04339175,137.1,137.07,10.0]
[1720730353577,20.04339175,137.1,137.07,10.0]
[1720730354088,0.04339175,137.1,137.09,10.0]
[1720730354872,0.04339175,137.1,137.07,20.0]
[1720730355085,0.04339175,137.1,137.03,10.0]
[1720730355293,7.2969,137.05,137.03,10.0]
[1720730355496,55.00229175,137.1,137.03,10.0]
[1720730355797,20.0,137.04,137.03,10.0]
[1720730356988,20.0,137.04,136.98,10.0]
[1720730357205,6.5101,137.06,136.98,10.0]
[1720730357206,7.2977,137.03,136.98,10.0]
[1720730357704,20.0,137.02,136.98,10.0]
[1720730359179,20.0,137.03,136.98,10.0]
[1720730359876,23.09489175,137.1,137.03,10.0]
[1720730360107,28.77,137.09,137.05,10.0]
[1720730360404,7.2959,137.07,137.03,10.0]
[1720730360587,7.2949,137.09,137.03,10.0]
[1720730360899,7.2956,137.07,137.03,10.0]
[1720730361485,20.0,137.06,137.03,10.0]
[1720730361986,20.0,137.07,137.03,10.0]
[1720730362673,27.2955,137.07,137.03,10.0]
[1720730363779,20.0,137.07,137.05,10.0]
[1720730363991,20.0,137.07,137.01,33.7671]
[1720730364176,20.0,137.08,137.02,52.6378]
[1720730364371,2.98205723,137.1,137.02,45.34]
[1720730364574,2.98205723,137.1,137.04,7.297]
[1720730364774,0.04339175,137.1,137.04,7.297]
[1720730365201,0.04339175,137.1,137.05,7.2964]
[1720730365990,0.04339175,137.1,137.04,18.2423]
[1720730366183,0.04339175,137.1,137.03,7.2976]
[1720730366896,7.2946,137.09,137.03,7.2976]
[1720730367103,20.0,137.08,137.03,7.2976]
[1720730367602,20.0,137.08,137.04,7.297]
[1720730367798,20.0,137.09,137.04,7.297]
[1720730368505,20.0,137.09,137.05,7.2962]
[1720730368692,0.04339175,137.1,137.05,7.2962]
[1720730369397,0.04339175,137.1,137.07,7.295]
[1720730369593,0.04339175,137.1,137.06,18.2397]
[1720730369594,0.04339175,137.1,137.06,25.5356]
[1720730372497,0.04339175,137.1,137.06,18.2397]
[1720730372986,7.2945,137.09,137.03,25.5404]
[1720730373190,20.0,137.08,137.03,25.5404]
[1720730373391,7.33739175,137.1,137.04,7.2968]
[1720730373589,20.0,137.09,137.04,7.2968]
[1720730373984,20.04339175,137.1,137.04,7.2968]
[1720730374185,27.33769175,137.1,137.03,25.5404]
[1720730374693,20.04339175,137.1,137.05,7.2961]
[1720730374891,0.04339175,137.1,137.05,7.2961]
[1720730375087,7.33729175,137.1,137.04,7.297]
[1720730375308,20.0,137.09,137.03,18.243]
[1720730375888,20.0,137.09,137.04,7.2967]
[1720730376311,27.2946,137.09,137.03,25.5404]
[1720730376889,20.0,137.09,137.03,25.5404]
[1720730377584,27.2946,137.09,137.03,25.5404]
[1720730378086,27.2948,137.09,137.03,25.5406]
[1720730378611,27.2948,137.09,137.03,18.243]
[1720730378808,7.2951,137.08,137.02,7.2981]
[1720730378997,27.2955,137.07,137.01,22.8191]
[1720730380324,27.2955,137.07,137.01,7.2985]
[1720730380696,20.0,137.07,137.01,7.2985]
[1720730381109,27.2958,137.07,137.01,7.2985]
[1720730381318,7.296,137.06,137.0,25.5461]
[1720730381504,20.0,137.05,137.0,25.5461]
[1720730382424,20.0,137.05,137.01,7.2985]
[1720730382597,20.0,137.06,137.01,7.2985]
[1720730383113,27.2961,137.06,137.0,25.5461]
[1720730384226,20.0,137.06,137.0,25.5461]
[1720730384423,20.0,137.06,137.01,7.2986]
[1720730384924,20.0,137.06,137.0,18.247]
[1720730384925,20.0,137.06,137.02,7.2981]
[1720730385230,20.0,137.07,136.98,15.4048]
[1720730385406,20.0,137.07,137.02,25.5432]
[1720730386405,22.96128686,137.07,137.02,25.5433]
[1720730386805,22.96128686,137.07,137.02,18.2453]
[1720730387806,30.25678686,137.07,137.02,18.2453]
[1720730388811,0.04339175,137.1,137.04,18.2425]
[1720730389015,0.04339175,137.1,137.07,7.2951]
[1720730390139,0.04339175,137.1,137.08,7.2947]
[1720730391323,0.04339175,137.1,137.09,7.2944]
[1720730393240,0.04339175,137.1,137.08,25.532]
[1720730393535,0.848281,137.15,137.09,66.975]
[1720730393739,0.848281,137.15,137.13,7.2921]
[1720730394109,0.848281,137.15,137.14,7.2918]
[1720730394540,0.848281,137.15,137.13,7.2921]
[1720730395620,0.848281,137.15,137.12,18.2315]
[1720730396229,0.848281,137.15,137.11,7.2933]
[1720730396614,0.848281,137.15,137.1,7.2937]
[1720730397019,0.848281,137.15,137.11,7.2932]
[1720730397934,0.848281,137.15,137.12,45.0]
[1720730398237,0.848281,137.15,137.11,25.5258]
[1720730398840,0.848281,137.15,137.12,7.2927]
[1720730400111,0.848281,137.15,137.11,25.5259]
[1720730400726,0.848281,137.15,137.11,18.2326]
[1720730400932,20.848281,137.15,137.11,18.2326]
[1720730401133,20.848281,137.15,137.1,7.2939]
[1720730401818,20.848281,137.15,137.08,18.2366]
[1720730402018,27.2921,137.14,137.08,25.5312]
[1720730402219,6.2608,137.13,137.03,260.3]